Cogmind - Beta 15 @@@ ROGUE MODE // 2025.07.11 @ 22:19:22 Player: xgames Result: Destroyed by as-67343 with Assembled Blade Performance ------------- Evolutions (0) 0 Regions Visited (2) 400 Robots Destroyed (20) 100 Value Destroyed (399) 399 Prototype IDs (2) 40 Alien Tech Used (0) 0 Bonus (60) 60 TOTAL SCORE: 999 Bonus ------- Follower Combat Kills 60 Cogmind --------- Core Integrity 0/250 Matter 300/300 Energy 247/250 System Corruption 1% Temperature Cool (50) Movement Treading (160) Location -10/Mines Parts ------- > --- POWER (1) -------- Ion Engine > --- PROPULSION (2) --- Light Treads Light Treads > --- UTILITY (2) ------ Large Storage Unit Seismic Detector > --- WEAPON (2) ------- Beam Cannon Rocket Launcher > --- INVENTORY (15) --- Light Ion Engine Light Nuclear Core Wheel Heat Sink Improved Heat Sink Small Storage Unit Huge Storage Unit Improved Terrain Scanner Targeting Computer ECM Suite Utility Shielding Medium Laser Beam Cannon Beam Cannon Mining Laser Peak State ------------ > --- POWER ------------ Ion Engine > --- PROPULSION ------- Light Treads Light Treads > --- UTILITY ---------- Heat Sink Large Storage Unit > --- WEAPON ----------- Beam Cannon Rocket Launcher > --- INVENTORY -------- Light Ion Engine Light Nuclear Core Wheel Improved Heat Sink Small Storage Unit Huge Storage Unit Improved Terrain Scanner Seismic Detector Targeting Computer ECM Suite Utility Shielding Medium Laser Beam Cannon Beam Cannon Mining Laser [Rating: 10] Favorites ----------- Power Ion Engine Engine Ion Engine Propulsion Light Treads Treads Light Treads Utility Heat Sink Device Heat Sink Storage Large Storage Unit Weapon Beam Cannon Energy Gun Small Laser Energy Cannon Beam Cannon Launcher Rocket Launcher Build | -11 -10 -10 ------- Run | Yrd Mat Min Slots Evolved . | . . . Power . | . . . Propulsion . | . . . Utility . | . . . Weapon . | . . . Parts Attached 16 | 7 7 2 Power 2 | 1 1 . Engine 2 | 1 1 . Core . | . . . Reactor . | . . . Propulsion 3 | 2 . 1 Treads 3 | 2 . 1 Leg . | . . . Wheel . | . . . Hover . | . . . Flight . | . . . Utility 5 | 2 3 . Device 2 | 1 1 . Storage 3 | 1 2 . Processor . | . . . Hackware . | . . . Protection . | . . . Artifact . | . . . Weapon 6 | 2 3 1 Energy Gun 2 | 2 . . Energy Cannon 3 | . 3 . Ballistic Gun . | . . . Ballistic Cannon . | . . . Launcher 1 | . . 1 Special Weapon . | . . . Impact Weapon . | . . . Slashing Weapon . | . . . Piercing Weapon . | . . . Special Melee Weapon . | . . . Unidentified Prototypes . | . . . Parts Lost 1 | . . 1 Power . | . . . Propulsion 1 | . . 1 Utility . | . . . Weapon . | . . . Highest Loss Streak 1 | . . 1 To Critical Strikes . | . . . Average Backups 11 | 5 8 14 Power 1 | 1 1 1 Propulsion 1 | 3 2 1 Utility 5 | . 3 7 Weapon 2 | 1 1 3 Tool/Special . | . . . Unused Backups 13 | . 3 10 Power 2 | . . 2 Propulsion 4 | . 3 1 Utility 5 | . . 5 Weapon 2 | . . 2 Tool/Special . | . . . Average Slot Usage (%) 99 | . 100 99 Engine 14 | . 14 14 Treads 27 | . 28 27 Device 14 | . 14 14 Storage 14 | . 14 14 Energy Gun 2 | . 4 . Energy Cannon 19 | . 23 15 Launcher 5 | . . 12 Peak Build Rating 10 | 7 8 10 Average Rating 8 | 4 7 9 On Entrance 5 | . 7 8 Naked Turns . | . . . Heaviest Build 92 | 13 92 33 Greatest Support 40 | 40 40 40 Greatest Overweight (x) 2 | . 2 . Average Overweight (x) . | . . . Largest Inventory Capacity 25 | 8 25 15 Average Capacity 13 | 7 13 15 Most Carried 15 | 8 12 15 Average Carried 11 | 5 8 14 Final Capacity 15 | 8 15 15 Final Carried 15 | 7 12 15 Class Distribution -------------------- 100% | Mutant Dominant Class ---------------- Mutant | -10/Materials Mutant | -10/Mines Resources | -11 -10 -10 ----------- Run | Yrd Mat Min Matter Collected 435 | 270 79 86 Remotely . | . . . Salvage Created 648 | 122 419 107 Parts 37 | 7 22 8 Haulers Intercepted . | . . . Recyclers Shooed . | . . . Parts Field Recycled . | . . . Retrieved Matter . | . . . Parts Self-Destructed . | . . . Prevented . | . . . Kills | -11 -10 -10 ------- Run | Yrd Mat Min Combat Hostiles Destroyed 11 | . 8 3 Cannons 10 | . 8 2 AOE 1 | . . 1 Classes Destroyed 8 | 3 3 2 Worker 3 | 2 1 . Builder 1 | . . 1 Tunneler 1 | 1 . . Recycler 3 | 1 2 . Watcher 2 | . 2 . Swarmer 3 | . 3 . Grunt 7 | . 5 2 Assembled 1 | . . 1 Best Kill Streak 4 | 2 4 2 Combat Bots Only 2 | . 2 2 Max Kills in Single Turn 2 | 1 1 2 Gunslinging . | . . . Exploded 1 | . . 1 Melee . | . . . Uniques/NPCs Destroyed . | . . . Combat | -11 -10 -10 -------- Run | Yrd Mat Min Hostile Shots Fired 73 | . 63 10 Missed 15 | . 13 2 Hits 58 | . 50 8 Melee 3 | . . 3 Projectile 55 | . 50 5 Critical Strikes 2 | . 1 1 Damage Taken 817 | . 620 197 Core 251 | . 146 105 Absorbed by Shields . | . . . Core Remaining (%) 100 | 100 . . Volleys Fired 48 | 8 32 8 Largest 2 | 2 2 2 Hottest 120 | 80 120 93 Shots Fired 81 | 16 55 10 Gun 16 | 16 . . Cannon 64 | . 55 9 Launcher 1 | . . 1 Special . | . . . Kinetic . | . . . Thermal 80 | 16 55 9 Explosive 1 | . . 1 Electromagnetic . | . . . Robot Hit Streak 7 | 5 7 4 Robot Miss Streak 3 | 3 2 2 Penetration Max . | . . . Secondary Targets . | . . . Shots Hit Robots 44 | 7 31 6 Core Hits 24 | 5 14 5 Critical Kills . | . . . Critical Parts Destroyed . | . . . Critical Strikes . | . . . Melee Attacks . | . . . Impact . | . . . Slashing . | . . . Piercing . | . . . Sneak Attacks . | . . . Combat Hostiles . | . . . Follow-up Attacks . | . . . Damage Inflicted 1023 | 75 798 150 Guns 75 | 75 . . Cannons 702 | . 597 105 Explosions 229 | . 184 45 Melee . | . . . Ramming 17 | . 17 . Kinetic . | . . . Thermal 961 | 75 781 105 Explosive 45 | . . 45 Electromagnetic . | . . . Impact . | . . . Slashing . | . . . Piercing . | . . . Highest Corruption 1 | . 1 1 Average Corruption 1 | . 1 1 Corruption Purged . | . . . Corruption Blocked . | . . . Effects 16 | . 7 9 Message Errors 5 | . 1 4 Matter Fused 5 | . 1 4 Heat Flow Errors 1 | . 1 . Energy Discharges 2 | . 2 . Data Loss (minor) 1 | . 1 . Data Loss (major) 1 | . 1 . Misfires 1 | . . 1 Overload Shots . | . . . Overflow Damage 6 | . 6 . Projectiles . | . . . Explosions 6 | . 6 . Melee . | . . . Knockbacks . | . . . Impact . | . . . Kinetic . | . . . Secondary . | . . . Self-Inflicted Damage 47 | . . 47 Shots 1 | . . 1 Rammed 5 | . 5 . Targets Rammed 5 | . 5 . Kicked . | . . . Crushed . | . . . Highest Temperature 566 | 36 566 50 Average Temperature 129 | 16 162 16 Received Heat Transfer 354 | . 330 24 Effects 14 | . 14 . Energy Bleed 5 | . 5 . Interference 3 | . 3 . Matter Decay 1 | . 1 . Short Circuit 1 | . 1 . Damage (minor) 2 | . 2 . Damage (major) 1 | . 1 . Damage (core) 1 | . 1 . Siege Activations . | . . . Martial Activations . | . . . Shielding Activations . | . . . Robots Disrupted . | . . . Combat Hostiles . | . . . Robots Corrupted . | . . . Combat Hostiles . | . . . Parts Fried . | . . . Impact Corruptions . | . . . Robots Melted . | . . . Combat Hostiles . | . . . Parts Melted 4 | . 3 1 Heat Transferred 1755 | 175 1358 222 Parts Sabotaged . | . . . Parts Stolen . | . . . Parts Stripped . | . . . Power Chain Reactions . | . . . Alert | -11 -10 -10 ------- Run | Yrd Mat Min Maximum Alert Level . | . . . Low Security (%) 100 | 100 100 100 Level 1 . | . . . Level 2 . | . . . Level 3 . | . . . Level 4 . | . . . Level 5 . | . . . High Security . | . . . Max Security . | . . . Peak Influence 158 | 5 158 76 Initial . | . . . Average 25 | . 47 6 Influence Increases 479 | 20 325 134 Destroy 0b10 Robot/C 240 | . 160 80 Destroy 0b10 Robot/NC 50 | 20 25 5 Destroy Leader 54 | . 34 20 Allied During Kill 3 | . . 3 Successful Hack 10 | . 10 . Disable Machine 60 | . 45 15 Destroy Structure 32 | . 21 11 Partial Spotted 15 | . 15 . Lose Combat Pursuer 15 | . 15 . Influence Decreases 479 | 20 325 134 Time Decay 456 | 20 325 111 Lost Part 3 | . . 3 Lost Ally 20 | . . 20 Squads Dispatched 1 | . 1 . Investigation 1 | . 1 . Extermination . | . . . Reinforcement . | . . . Assault . | . . . Garrison . | . . . Intercept . | . . . Searches Triggered . | . . . Construction Impeded . | . . . Haulers Reinforced . | . . . Active Scanning Responses . | . . . Cargo Convoy Interrupts . | . . . Stealth | -11 -10 -10 --------- Run | Yrd Mat Min Distress Signals . | . . . Communications Jammed . | . . . Distress Signals . | . . . Times Spotted 24 | . 18 6 Peak Tracking Total 4 | . 4 2 Tactical Retreats 1 | . 1 . Traps | -11 -10 -10 ------- Run | Yrd Mat Min Traps Triggered . | . . . Indirectly . | . . . Trap Hack Attempts . | . . . Triggered . | . . . Disarmed . | . . . Reprogrammed . | . . . Reused . | . . . Traps Extracted . | . . . Installed . | . . . Triggered . | . . . Machines | -11 -10 -10 ---------- Run | Yrd Mat Min Machines Disabled 4 | . 3 1 Max in Single Turn 2 | . 2 1 Machines Repaired . | . . . Machines Dismantled . | . . . Machines Sabotaged . | . . . Overloaded Fab Kills . | . . . Hacking | -11 -10 -10 --------- Run | Yrd Mat Min Machines Accessed 6 | . 6 . Terminals 6 | . 6 . Fabricators . | . . . Repair Stations . | . . . Recycling Units . | . . . Scanalyzers . | . . . Garrison Access . | . . . Total Hacks 14 | . 14 . Successful 6 | . 6 . Failed 8 | . 8 . Catastrophic 1 | . 1 . Database Lockouts . | . . . Manual 4 | . 4 . Terminals 14 | . 14 . Fabricators . | . . . Repair Stations . | . . . Recycling Units . | . . . Scanalyzers . | . . . Garrison Access . | . . . Terminal Hacks 6 | . 6 . Robot Analysis 1 | . 1 . Prototype ID Bank 1 | . 1 . Emergency Access Points 1 | . 1 . Alert Level 1 | . 1 . Locate Traps 1 | . 1 . Dispatch Records 1 | . 1 . Fabricator Hacks . | . . . Repair Station Hacks . | . . . Recycling Unit Hacks . | . . . Scanalyzer . | . . . Garrison Access Hacks . | . . . Unauthorized Hacks . | . . . Terminals . | . . . Fabricators . | . . . Repair Stations . | . . . Recycling Units . | . . . Scanalyzers . | . . . Garrison Access . | . . . Data Cores Recovered . | . . . Used . | . . . Hacking Detections 6 | . 6 . Full Trace Events 2 | . 2 . Feedback Events 1 | . 1 . Corruption 1 | . 1 . Feedback Blocked . | . . . Robot Schematics Acquired . | . . . Robots Built . | . . . Authchips . | . . . Time . | . . . Total Robot Build Rating . | . . . Part Schematics Acquired . | . . . Parts Built . | . . . Authchips . | . . . Time . | . . . Total Part Build Rating . | . . . Parts Repaired . | . . . Time . | . . . Parts Recycled . | . . . Recycled Matter . | . . . Retrieved Matter . | . . . Retrieved Components . | . . . Parts Scanalyzed . | . . . Part Schematics Acquired . | . . . Parts Damaged . | . . . Bothacking | -11 -10 -10 ------------ Run | Yrd Mat Min Used RIF Installer . | . . . Robots Hacked . | . . . Non-combat . | . . . Combat . | . . . Robot Hacks Applied . | . . . Relay Couplers Released . | . . . Fabnet Peak Effective % . | . . . Robots Rewired . | . . . Allies Hacked . | . . . Hacks Repelled . | . . . Allies | -11 -10 -10 -------- Run | Yrd Mat Min Total Allies 1 | . . 1 Largest Group 1 | . . 1 Highest-Rated Group 31 | . . 31 Highest-Rated Ally 31 | . . 31 Total Orders . | . . . Ally Attacks 9 | . . 9 Total Damage 168 | . . 168 Kills 2 | . . 2 Allies Corrupted . | . . . Allies Melted . | . . . Intel | -11 -10 -10 ------- Run | Yrd Mat Min Active Infowar (turns) 1045 | 25 281 739 Seismic 1045 | 25 281 739 Robot Analysis Total 1 | . 1 . Derelict Logs Recovered . | . . . Drone Launches . | . . . Drone Recoveries . | . . . Exploration | -11 -10 -10 ------------- Run | Yrd Mat Min Turns Passed 2643 | 235 1256 1152 Spaces Moved 989 | 134 599 256 Core 21 | 21 . . Treads 968 | 113 599 256 Legs . | . . . Wheels . | . . . Hover . | . . . Flight . | . . . Fastest Speed 50 | 50 160 160 Average Speed 175 | 142 189 160 Slowest Speed 320 | 160 320 160 Overloaded Moves . | . . . Propulsion Burnouts . | . . . Robots Hopped . | . . . Potential Cave-ins . | . . . Cave-ins Triggered . | . . . Exploration Rate (%) 44 | 6 72 55 Regions Visited 2 Branch Regions 1 Pre-discovered Areas . | . . . Known Exits Taken . | . . . Unknown Exits Taken 2 | 1 1 . Scrap Searched 2 | . . 2 Spaces Dug . | . . . Terrain Destroyed 34 | . 22 12 Melee . | . . . Projectile . | . . . AOE 34 | . 22 12 Terrain Rammed . | . . . Walls Destroyed . | . . . Machines Disabled . | . . . Actions | -11 -10 -10 --------- Run | Yrd Mat Min Total 1814 | 162 663 989 Wait 720 | . 2 718 Move 987 | 133 598 256 Hop . | . . . Pick Up 30 | 14 12 4 Fast Attach . | . . . Attach 8 | 7 . 1 Detach . | . . . Swap 9 | . 7 2 Drop 7 | . 7 . Fire 48 | 8 32 8 Melee . | . . . Ram . | . . . Kick . | . . . Crush 5 | . 5 . Escape Stasis . | . . . Rewire . | . . . Trap . | . . . Miscellaneous . | . . . Route ------- -11/Scrapyard -10/Materials (discovered 3 exits: [*Mat x2] / [*Min]) -10/Mines (discovered 1 exit: [*Mat]) History --------- Turn | Location | Event 2 | -11/Scrapyard | Met Revision 17 6 | -11/Scrapyard | Discovered new exit (range 16) 236 | -11/Scrapyard | Entered Materials 313 | -10/Materials | Build established: Mutant 489 | -10/Materials | Discovered new exit (range 15) 561 | -10/Materials | Core integrity fell below 50% 1015 | -10/Materials | Discovered new exit (range 11) 1054 | -10/Materials | Discovered new exit (range 9) 1492 | -10/Materials | Entered Mines 1495 | -10/Mines | Received a Mining Laser from a helpful Derelict 1530 | -10/Mines | Discovered new exit (range 8) 1532 | -10/Mines | Received a Rocket Launcher from a helpful Derelict 1824 | -10/Mines | Assembled infested the area 1829 | -10/Mines | Assisted by a Guerilla fighting off Assembled 2643 | -10/Mines | Core integrity fell below 20% 2644 | -10/Mines | Destroyed by as-67343 with Assembled Blade Last Messages --------------- 01929_ U-05 Engineer lays Concrete. 01931_ U-05 Engineer builds a Wall. 01939_ U-05 Engineer lays Concrete. 01940_ U-05 Engineer builds a Wall. 01943_ System corrupted: Matter fused (-8). 01944_ U-05 Engineer builds a Wall. 01951_ U-05 Engineer lays Concrete. 01956_ U-05 Engineer builds a Wall. 01982_ U-05 Engineer builds a Door. 01984_ System corrupted: FCS attempts to trigger Beam Cannon. 01984_ System corrupted: Beam Cannon misfires. 01984_ Terrain Scan Processor melted. 01984_ U-05 Engineer destroyed. 02054_ MHRFB0BLV55: 1G2PHR,SQN|SNZR%HXRMF 02111_ RZMRK,G7PTPJCD9UYNZ9U6M:G&=9HI|NC=SU 02459_ System corrupted: Matter fused (-9). 02587_ Acquired 18 matter. 02618_ as-68837 destroyed. 02625_ Acquired 12 matter. 02637_ Acquired 2 matter. Map ----- +----------------------------------------------------+ | | | | | | | | | | | | | | | ?????????????????????????????????????????????????? | | ?????????????????????????????????????????????????? | | ?????????????????????????????????????????????????? | | ?????????????????????????????????????????????????? | | ?????????????????????????????????????????????????? | | ?????????????????????????????????????????????????? | | ?????????????????????????????????????????????????? | | ?????????????????????????????????????????????????? | | ?????????????###?????????????????????????????????? | | ?????????#??## ######???????????????????????????? | | ?????????# ## ## ##??????????????????????????? | | ?????????# #???????####???????????????? | | ?????????# |###### #??????????????? | | ?????????# #### #???????????????????? | | ??????????????# #% #####???????????????????? | | ??????????????# #! #???????????????????????? | | ??????????????#### #=%#?????????###???????????? | | ?????????????????## ##aa######???## ###?????????? | | ??????????????????#####%!@! #???# ##????????? | | ??????????????????????#!=#### #??## #????????? | | ??????????????????????# #??# #?## #????????? | | ??????????????????????# #??# ### = ##????????? | | ??????????????????????# !##?# += ##?????????? | | ?????????????????????##% ######## ##??????????? | | ????????????????????## ##???#####???????????? | | ?????????????######## #???????????????????? | | ????????????## ##??????????????????? | | ????????????# #??????????????????? | | ????????????# #??????????????????? | | ????????????## ### ##??????????????????? | | ?????????????# ##?####???????????????????? | | ??????##?????# ##???????????????????????? | | ????## ##????# ##????????##????????????? | | ????# #????## ##?????? #???????????? | | ???## #??????#### #????? ???????????? | | ??## #?????????## ##??? ????????????? | | ### #???????????## ### ""?????????????? | | #????????????### ""?????????????? | | ##?###?????????## ""?????????????? | | ## ##????????## ??????????? | | # #????????# ## ??????????? | | ## < #????????# ##?## ???????????? | | ?#### ##????????# #????# ##???????????? | +----------------------------------------------------+ Best States ------------- Heat Dissipation 35 Energy Generation 10 Energy Capacity 250 Matter Stores 300 Matter Capacity 300 Sight Range 16 Terrain Scan Density 10 Evasion (%) 40 Recoil Reduction 2 Item Schematics ----------------- None Robot Schematics ------------------ None Fabricated ------------ Nothing Repaired ---------- Nothing Alien Tech Used ----------------- None Achievements -------------- None Challenges ------------ None Game ------ Seed DerelictPartitionSplitter Manual? 0 Play Time 00:19:00 Cumulative 7.0 hours Start 2025.07.11 @ 22:01:43 End 2025.07.11 @ 22:19:22 Sessions 1 Manual Loads 0 Difficulty Rogue Special Mode None Game No. 16 Rogue 16 Adventurer 0 Explorer 0 Win Type - Total 0 Types 0/0/0/0/0/0/0/0/0/0 Lore% 7 Gallery% 11 Achievement% 15 Wizard Run 0 Options --------- Layout 1 ASCII 0 Keyboard 0 Movement Mouse Keybinds 0 Fullscreen 1 Font 24/Smallcaps Map View 76x35 Zoom Use 0% Tactical HUD 1 Map Filters NONE Filters NONE Steam 1 RUN: a0e2d7d0-e36d-446d-afb5-9764f91e10e4